bitfinex-derivatives/quotes_ETHF0:USTF0_20260112
["timestamp","ask_amount","ask_price","bid_price","bid_amount"]
[1768221846354,0.9298695,3118.2,3117.4,0.16059]
[1768221846560,0.56109449,3118.4,3117.4,0.16059]
[1768221846759,0.92984919,3118.3,3117.4,0.16059]
[1768221846962,0.92984919,3118.2,3117.4,0.16059]
[1768221847163,0.56109449,3118.4,3117.4,0.16059]
[1768221847358,0.92983375,3118.3,3117.4,0.16059]
[1768221847562,0.92983375,3118.2,3117.4,0.16059]
[1768221847761,0.56109449,3118.4,3117.4,0.16059]
[1768221847967,0.92983377,3118.3,3117.4,0.16059]
[1768221848172,0.92983377,3118.2,3117.4,0.16059]
[1768221848467,0.56109449,3118.4,3117.4,0.16059]
[1768221848665,0.92982288,3118.3,3117.4,0.16059]
[1768221848868,0.56109449,3118.4,3117.4,0.16059]
[1768221849064,0.9298229,3118.3,3117.4,0.16059]
[1768221849268,0.56109449,3118.4,3117.4,0.16059]
[1768221849567,0.92981423,3118.3,3117.4,0.16059]
[1768221849767,0.56109449,3118.4,3117.4,0.16059]
[1768221849957,0.92981432,3118.3,3117.4,0.16059]
[1768221850164,0.56109449,3118.4,3117.4,0.16059]
[1768221850360,0.92980972,3118.3,3117.4,0.16059]
[1768221850564,0.56109449,3118.4,3117.4,0.16059]
[1768221850862,0.92981003,3118.3,3117.4,0.16059]
[1768221851062,0.56109449,3118.4,3117.4,0.16059]
[1768221851262,0.92980853,3118.3,3117.4,0.16059]
[1768221851559,0.56109449,3118.4,3117.4,0.16059]
[1768221851762,0.92980853,3118.3,3117.4,0.16059]
[1768221851962,0.56109449,3118.4,3117.4,0.16059]
[1768221852158,0.92980853,3118.3,3117.4,0.16059]
[1768221852369,0.56109449,3118.4,3117.4,0.16059]
[1768221852569,0.92981104,3118.3,3117.4,0.16059]
[1768221852769,0.57130469,3118.3,3117.4,0.16059]
[1768221863090,0.93019195,3118.2,3117.4,0.16059]
[1768221863296,0.57130469,3118.3,3117.4,0.16059]
[1768221863586,0.93019195,3118.2,3117.4,0.16059]
[1768221863888,0.57130469,3118.3,3117.4,0.16059]
[1768221864087,0.93019195,3118.2,3117.4,0.16059]
[1768221864288,0.57130469,3118.3,3117.4,0.16059]
[1768221864488,0.9302849,3118.2,3117.4,0.16059]
[1768221864689,0.57130469,3118.3,3117.4,0.16059]
[1768221864887,0.93028505,3118.2,3117.4,0.16059]
[1768221865086,0.57130469,3118.3,3117.4,0.16059]
[1768221865287,0.93042412,3118.2,3117.4,0.16059]
[1768221865489,0.57130469,3118.3,3117.4,0.16059]
[1768221865691,0.93042412,3118.2,3117.4,0.16059]
[1768221865890,0.57130469,3118.3,3117.4,0.16059]
[1768221866195,0.93042397,3118.2,3117.4,0.16059]
[1768221866493,0.57130469,3118.3,3117.4,0.16059]
[1768221866696,0.93062771,3118.2,3117.4,0.16059]
[1768221866989,0.57130469,3118.3,3117.4,0.16059]
[1768221867194,0.93062822,3118.2,3117.4,0.16059]
[1768221867397,0.57130469,3118.3,3117.4,0.16059]
[1768221867594,0.93062848,3118.2,3117.4,0.16059]
[1768221867794,0.57130469,3118.3,3117.4,0.16059]
[1768221867993,0.93062864,3118.2,3117.4,0.16059]
[1768221868200,0.57130469,3118.3,3117.4,0.16059]
[1768221868395,0.9315154,3118.2,3117.4,0.16059]
[1768221868595,0.57130469,3118.3,3117.4,0.16059]
[1768221868796,0.9315154,3118.2,3117.4,0.16059]
[1768221869096,0.57130469,3118.3,3117.4,0.16059]
[1768221869298,0.93151579,3118.2,3117.4,1.39710378]
[1768221869499,0.57130469,3118.3,3117.4,1.39710378]
[1768221869698,0.93151579,3118.2,3117.4,1.39710378]
[1768221869892,0.57130469,3118.3,3117.4,1.39710378]
[1768221870093,0.93151563,3118.2,3117.4,1.39710378]
[1768221870298,0.57130469,3118.3,3117.4,1.39710378]
[1768221870501,0.931517,3118.2,3117.4,1.39710378]
[1768221870697,0.57130469,3118.3,3117.4,1.39710378]
[1768221870895,0.931517,3118.2,3117.4,1.39710378]
[1768221871097,0.57130469,3118.3,3117.4,1.39710378]
[1768221871299,0.93151496,3118.2,3117.4,1.39710378]
[1768221871501,0.57130469,3118.3,3117.4,1.39710378]
[1768221871700,0.93151496,3118.2,3117.6,1.23651378]
[1768221871900,0.57130469,3118.3,3117.6,1.23651378]
[1768221872202,0.93151455,3118.2,3117.6,1.23651378]
[1768221872399,0.57130469,3118.3,3117.6,1.23651378]
[1768221872597,0.93151316,3118.2,3117.6,1.23651378]
[1768221872797,0.57130469,3118.3,3117.6,1.23651378]
[1768221873003,0.93151331,3118.2,3117.6,1.23651378]
[1768221873201,0.57130469,3118.3,3117.6,1.23651378]
[1768221873401,0.93151235,3118.2,3117.6,1.23651378]
[1768221873700,0.57130469,3118.3,3117.6,1.23651378]
[1768221873900,0.93151235,3118.2,3117.6,1.23651378]
[1768221874105,0.57130469,3118.3,3117.6,1.23651378]
[1768221874302,0.93151161,3118.2,3117.6,1.23651378]
[1768221874502,0.57130469,3118.3,3117.6,1.23651378]
[1768221874801,0.93151146,3118.2,3117.6,1.23651378]
[1768221875003,0.57130469,3118.3,3117.6,1.23651378]
[1768221875207,0.93151178,3118.2,3117.6,1.23651378]
[1768221875401,0.57130469,3118.3,3117.6,1.23651378]
[1768221875694,0.93151076,3118.2,3117.6,1.23651378]
[1768221875901,0.57130469,3118.3,3117.6,1.23651378]
[1768221876100,0.93151076,3118.2,3117.6,1.23651378]
[1768221876307,0.57130469,3118.3,3117.6,1.23651378]
[1768221876605,0.93151013,3118.2,3117.6,1.23651378]
[1768221876793,0.57130469,3118.3,3117.6,1.23651378]
[1768221876994,0.93151013,3118.2,3117.6,1.23651378]
[1768221877198,0.57130469,3118.3,3117.6,1.23651378]
[1768221877399,0.9315102,3118.2,3117.6,1.23651378]
[1768221877697,0.57130469,3118.3,3117.6,1.23651378]
[1768221877999,0.9315102,3118.2,3117.6,1.23651378]
[1768221878200,0.57130469,3118.3,3117.6,1.23651378]
[1768221878399,0.93150991,3118.2,3117.6,1.23651378]
[1768221878600,0.57130469,3118.3,3117.6,1.23651378]
[1768221878800,0.93150991,3118.2,3117.6,1.23651378]
[1768221879008,0.57130469,3118.3,3117.6,1.23651378]
[1768221879209,0.93144398,3118.2,3117.6,1.23651378]
[1768221879508,0.57130469,3118.3,3117.6,1.23651378]
[1768221879712,0.93143771,3118.2,3117.6,1.23651378]
[1768221879906,0.57130469,3118.3,3117.6,1.23651378]
[1768221880106,0.93143763,3118.2,3117.6,1.23651378]
[1768221880307,0.57445443,3118.8,3117.6,1.23651378]
[1768221880602,1.85882301,3118.7,3117.6,1.23651378]
[1768221880907,1.28436858,3118.6,3117.6,1.23651378]
[1768221881099,0.57445443,3118.7,3117.6,1.23651378]
[1768221881100,0.93139918,3118.5,3117.6,1.23651378]
[1768221881301,0.93139918,3118.4,3117.6,1.23651378]
[1768221881502,0.93139918,3118.3,3117.6,1.23651378]
[1768221881710,0.93139918,3118.2,3117.6,1.23651378]
[1768221881906,0.57445443,3118.7,3117.6,1.23651378]
[1768221882105,1.28435772,3118.6,3117.6,1.23651378]
[1768221882307,0.93139223,3118.5,3117.6,1.23651378]
[1768221882507,0.93139223,3118.4,3117.6,1.23651378]
[1768221882708,0.93139223,3118.3,3117.6,1.23651378]
[1768221882903,0.57445443,3118.7,3117.6,1.23651378]
[1768221882904,0.93139223,3118.2,3117.6,1.23651378]
[1768221883104,0.57445443,3118.7,3117.6,1.23651378]
[1768221883309,1.85878287,3118.6,3117.6,1.23651378]
[1768221883510,0.57445443,3118.4,3117.4,0.16059]
[1768221883712,1.50582524,3118.3,3117.4,0.16059]
[1768221883908,0.93137081,3118.2,3117.5,1.536]
[1768221889818,0.93137081,3118.2,3117.4,1.39710378]
[1768221890018,0.93137081,3118.2,3117.5,1.544]
[1768221906051,1.79636158,3118.8,3117.5,1.544]
[1768221906253,1.28490265,3118.7,3117.5,1.544]
[1768221906442,1.28490265,3118.6,3117.5,1.544]
[1768221906649,0.93194315,3118.5,3117.5,1.544]
[1768221906854,0.93194315,3118.4,3117.5,1.544]
[1768221907151,0.93194315,3118.3,3117.6,1.23651378]
[1768221907351,0.93194315,3118.2,3117.6,1.23651378]
[1768221907548,0.5598478,3118.8,3117.8,1.23651378]
[1768221907744,1.28487303,3118.7,3117.8,1.23651378]
[1768221907945,1.28487303,3118.6,3117.8,1.23651378]
[1768221908256,0.9319216,3118.5,3117.8,1.23651378]
[1768221908448,0.9319216,3118.4,3117.8,1.23651378]
[1768221908649,0.9319216,3118.3,3117.8,1.23651378]
[1768221908948,0.5598478,3118.8,3117.8,1.23651378]
[1768221909153,1.28484431,3118.7,3117.8,1.23651378]
[1768221909448,1.28484431,3118.6,3117.8,1.23651378]
[1768221909648,0.93190061,3118.5,3117.8,1.23651378]
[1768221909850,0.93190061,3118.4,3117.8,1.23651378]
[1768221910043,0.93190061,3118.3,3117.8,1.23651378]
[1768221910245,0.5598478,3118.8,3117.8,1.23651378]
[1768221910455,1.28483885,3118.7,3117.8,1.23651378]
[1768221910759,1.28483885,3118.6,3117.8,1.23651378]
[1768221910954,0.93189663,3118.5,3117.8,1.23651378]
[1768221911155,0.93189663,3118.4,3117.8,1.23651378]
[1768221911442,0.93189663,3118.3,3117.8,1.23651378]
[1768221911642,0.5598478,3118.8,3117.8,1.23651378]
[1768221911942,1.28482724,3118.7,3117.8,1.23651378]
[1768221912146,1.28482724,3118.6,3117.8,1.23651378]
[1768221912345,0.93188765,3118.5,3117.8,1.23651378]
[1768221912553,0.93188765,3118.4,3117.8,1.23651378]
[1768221912758,0.93188765,3118.3,3117.8,1.23651378]
[1768221912942,0.5598478,3118.8,3117.8,1.23651378]
[1768221913145,1.28482005,3118.7,3117.8,1.23651378]
[1768221913348,1.28482005,3118.6,3117.8,1.23651378]
[1768221913543,0.93188243,3118.5,3117.8,1.23651378]
[1768221913756,0.93188243,3118.4,3117.8,1.23651378]
[1768221913957,0.93188243,3118.3,3117.8,1.23651378]
[1768221914153,0.5598478,3118.8,3117.8,1.23651378]
[1768221914351,1.28479101,3118.7,3117.8,1.23651378]
[1768221914548,1.28479101,3118.6,3117.8,1.23651378]
[1768221914754,0.93186133,3118.5,3117.8,1.23651378]
[1768221914954,0.93186133,3118.4,3117.8,1.23651378]
[1768221915151,0.93186133,3118.3,3117.8,1.23651378]
[1768221915350,0.5598478,3118.8,3117.8,1.23651378]
[1768221915550,1.28477491,3118.7,3117.8,1.23651378]
[1768221915852,1.28477491,3118.6,3117.8,1.23651378]
[1768221916049,0.93184961,3118.5,3117.8,1.23651378]
[1768221916250,0.93184961,3118.4,3117.8,1.23651378]
[1768221916457,0.93184961,3118.3,3117.8,1.23651378]
[1768221916763,0.5598478,3118.8,3118.0,1.23651378]
[1768221916957,0.93182998,3118.7,3118.0,1.23989008]
[1768221917154,0.93182998,3118.6,3118.0,1.23989008]
[1768221917458,0.93182998,3118.5,3118.0,1.23989008]
[1768221917758,0.93182998,3118.4,3118.0,1.23989008]
[1768221917958,0.00246679,3118.9,3118.0,1.23989008]
[1768221918160,1.28454273,3118.8,3118.0,1.23989008]
[1768221918359,0.93168178,3118.7,3118.0,1.23989008]
[1768221918659,0.93168178,3118.6,3118.0,1.23989008]
[1768221918858,0.93168178,3118.5,3118.0,1.23989008]
[1768221919059,0.00246679,3118.9,3118.0,1.23989008]
[1768221919261,1.2842903,3118.8,3118.0,1.23989008]
[1768221919452,0.93147379,3118.7,3118.0,1.23989008]
[1768221919759,0.93147379,3118.6,3118.0,1.23989008]
[1768221919948,0.93147379,3118.5,3118.0,1.23989008]
[1768221920155,0.00246679,3118.9,3118.0,1.23989008]
[1768221920460,0.93134203,3118.8,3118.0,1.23989008]
[1768221920661,0.93134203,3118.7,3118.0,1.23989008]
[1768221920960,0.93134203,3118.6,3118.0,1.23989008]
[1768221921261,0.93134203,3118.5,3118.0,1.23989008]
[1768221921457,0.00246679,3118.9,3118.0,1.23989008]
[1768221921761,0.93125911,3118.8,3118.0,1.23989008]
[1768221921964,0.93125911,3118.7,3118.0,1.23989008]
[1768221922162,0.93125911,3118.6,3118.0,1.23989008]
[1768221922357,0.93125911,3118.5,3118.0,1.23989008]
[1768221922565,0.00246679,3118.9,3118.0,1.23989008]
[1768221922856,0.93118611,3118.8,3118.0,1.23989008]
[1768221923061,0.93118611,3118.7,3118.0,1.23989008]
[1768221923259,0.93118611,3118.6,3118.0,1.23989008]
[1768221923462,0.00246679,3118.9,3118.0,1.23989008]
[1768221923663,0.93112464,3118.8,3118.0,1.23989008]
[1768221923866,0.93112464,3118.7,3118.0,1.23989008]
[1768221924056,0.93112464,3118.6,3118.0,1.23989008]
[1768221924257,0.00246679,3118.9,3118.0,1.23989008]
[1768221924456,0.93107426,3118.8,3118.0,1.23989008]
[1768221924660,0.93107426,3118.7,3118.0,1.23989008]
[1768221924861,0.93107426,3118.6,3118.0,1.23989008]
[1768221925062,0.00246679,3118.9,3118.0,1.23989008]
[1768221925364,0.93103522,3118.8,3118.0,1.23989008]
[1768221925565,0.93103522,3118.7,3118.0,1.23989008]
[1768221925766,0.93103522,3118.6,3118.0,1.23989008]
[1768221925964,0.00246679,3118.9,3118.0,1.23989008]
[1768221926268,0.93103578,3118.8,3118.0,1.23989008]
[1768221926567,0.93103578,3118.7,3118.0,1.23989008]
[1768221926768,0.93103578,3118.6,3118.0,1.23989008]
[1768221927066,0.00246679,3118.9,3118.0,1.23989008]
[1768221927280,0.93098473,3118.8,3118.0,1.23989008]
[1768221927459,0.93098473,3118.7,3118.0,1.23989008]
[1768221927661,0.93098473,3118.6,3118.0,1.23989008]
[1768221927862,0.00246679,3118.9,3118.0,1.23989008]
[1768221928062,0.93098473,3118.8,3118.0,1.23989008]
[1768221928262,0.93098473,3118.7,3118.0,0.0033763]
[1768221928461,0.93098473,3118.6,3118.0,0.0033763]
[1768221928662,0.93098473,3118.5,3118.0,0.0033763]
[1768221928865,0.00246679,3118.9,3118.0,0.0033763]
[1768221929166,0.93099536,3118.8,3118.0,0.0033763]
[1768221929366,0.93099536,3118.7,3118.0,0.0033763]
[1768221929666,0.93099536,3118.6,3118.0,0.0033763]
[1768221929861,0.00246679,3118.9,3118.0,0.0033763]
[1768221930073,0.93097644,3118.8,3118.0,0.0033763]
[1768221930369,0.93097644,3118.7,3118.0,0.0033763]
[1768221930569,0.93097644,3118.6,3118.0,0.0033763]
[1768221930760,0.00246679,3118.9,3118.0,0.0033763]
[1768221930962,0.93092969,3118.8,3118.0,0.0033763]
[1768221931166,0.93092969,3118.7,3118.0,0.0033763]
[1768221931368,0.93092969,3118.6,3118.0,0.0033763]
[1768221931668,0.00246679,3118.9,3118.0,0.0033763]
[1768221931867,0.93089254,3118.8,3118.0,0.0033763]
[1768221932067,0.93089254,3118.7,3118.0,0.0033763]
[1768221932269,0.93089254,3118.6,3118.0,0.0033763]
[1768221932470,0.00246679,3118.9,3118.0,0.0033763]
[1768221932670,0.93086754,3118.8,3118.0,0.0033763]
[1768221932972,0.93086754,3118.7,3118.0,0.0033763]
[1768221933169,0.93086754,3118.6,3118.0,0.0033763]
[1768221933378,0.00246679,3118.9,3118.0,0.0033763]
[1768221933671,0.93085263,3118.8,3118.0,0.0033763]
[1768221933873,0.93085263,3118.7,3118.0,0.0033763]
[1768221934072,0.00246679,3118.9,3118.0,0.0033763]
[1768221934073,0.93085263,3118.6,3118.0,0.0033763]
[1768221934374,0.00246679,3118.9,3118.0,0.0033763]
[1768221934675,0.93085045,3118.8,3118.0,0.0033763]
[1768221934875,0.93085045,3118.7,3118.0,0.0033763]
[1768221935061,0.93085045,3118.6,3118.0,0.0033763]
[1768221935267,0.00246679,3118.9,3118.0,0.0033763]
[1768221935462,0.93085866,3118.8,3118.0,0.0033763]
[1768221935663,0.93085866,3118.7,3118.0,0.0033763]
[1768221935868,0.00246679,3118.9,3118.0,0.0033763]
[1768221936069,0.930853,3118.8,3118.0,0.0033763]
[1768221936269,0.930853,3118.7,3118.0,0.0033763]
[1768221936571,0.00246679,3118.9,3118.0,0.0033763]
[1768221936767,0.930841,3118.8,3118.0,0.0033763]
[1768221937062,0.930841,3118.7,3118.0,0.0033763]
[1768221937261,0.00246679,3118.9,3118.0,0.0033763]
[1768221937473,0.93084344,3118.8,3118.0,0.0033763]
[1768221937674,0.93084344,3118.7,3118.0,0.0033763]
[1768221937972,0.00246679,3118.9,3118.0,0.0033763]
[1768221938175,0.93084377,3118.8,3118.0,0.0033763]
[1768221938368,0.93084377,3118.7,3118.0,0.0033763]
[1768221938567,0.00246679,3118.9,3118.0,0.0033763]
[1768221938769,0.93083779,3118.8,3118.0,0.0033763]
[1768221939075,0.93083779,3118.7,3118.0,0.0033763]
[1768221939268,0.00246679,3118.9,3118.0,0.0033763]
[1768221939466,0.93084142,3118.8,3118.0,0.0033763]
[1768221939668,0.93084142,3118.7,3118.0,0.0033763]
[1768221939869,0.00246679,3118.9,3118.0,0.0033763]
[1768221940068,0.93084142,3118.8,3118.0,0.0033763]
[1768221940269,0.93084142,3118.7,3118.0,0.0033763]
[1768221940470,0.00246679,3118.9,3118.0,0.0033763]
[1768221940667,0.93085937,3118.8,3118.0,0.0033763]
[1768221940873,0.93085937,3118.7,3118.0,0.0033763]
[1768221941074,0.00246679,3118.9,3118.0,0.0033763]
[1768221941275,0.93088863,3118.8,3118.0,0.0033763]
[1768221941575,0.93088863,3118.7,3118.0,0.0033763]
[1768221941775,0.00246679,3118.9,3118.0,0.0033763]
[1768221941974,0.93088895,3118.8,3118.0,0.0033763]
[1768221942173,0.93088895,3118.7,3118.0,0.0033763]
[1768221942374,0.00246679,3118.9,3118.0,0.0033763]
[1768221942572,0.93093232,3118.8,3118.0,0.0033763]
[1768221942775,0.93093232,3118.7,3118.0,0.0033763]
[1768221942974,0.00246679,3118.9,3118.0,0.0033763]
[1768221943170,0.93093232,3118.8,3118.0,0.0033763]
[1768221943370,0.93093232,3118.7,3118.0,0.0033763]
[1768221943670,0.00246679,3118.9,3118.0,0.0033763]
[1768221943969,0.93098794,3118.8,3118.0,0.0033763]
[1768221944171,0.93098794,3118.7,3118.0,0.0033763]
[1768221944372,0.00246679,3118.9,3118.0,0.0033763]
[1768221944676,0.93106079,3118.8,3118.0,0.0033763]
[1768221944870,0.93106079,3118.7,3118.0,0.0033763]
[1768221945071,0.00246679,3118.9,3118.0,0.0033763]
[1768221945365,0.93115411,3118.8,3118.0,0.0033763]
[1768221945569,0.93115411,3118.7,3118.0,0.0033763]
[1768221945766,0.00246679,3118.9,3118.0,0.0033763]
[1768221945970,0.93115396,3118.8,3118.0,0.0033763]
[1768221946172,0.93115396,3118.7,3118.0,0.0033763]
[1768221946470,0.00246679,3118.9,3118.0,0.0033763]
[1768221946670,0.93127502,3118.8,3118.0,0.0033763]
[1768221946872,0.93127502,3118.7,3118.0,0.0033763]
[1768221947071,0.00246679,3118.9,3118.0,0.0033763]
[1768221947271,0.93127534,3118.8,3118.0,0.0033763]
[1768221947573,0.93127534,3118.7,3118.0,0.0033763]
[1768221947779,0.00246679,3118.9,3118.0,0.0033763]
[1768221947967,0.93130532,3118.8,3118.0,0.0033763]
[1768221948170,0.93130532,3118.7,3118.0,0.0033763]
[1768221948371,0.00246679,3118.9,3118.0,0.0033763]
[1768221948570,0.93134445,3118.8,3118.0,0.0033763]
[1768221948777,0.93134445,3118.7,3118.0,0.0033763]
[1768221948970,0.00246679,3118.9,3118.0,0.0033763]
[1768221949171,0.9313449,3118.8,3118.0,0.0033763]
[1768221949373,0.9313449,3118.7,3118.0,0.0033763]
[1768221949579,0.00246679,3118.9,3118.0,0.0033763]
[1768221949878,0.93137565,3118.8,3118.0,0.0033763]
[1768221950079,0.93137565,3118.7,3118.0,0.0033763]
[1768221950280,0.57218851,3118.9,3118.0,0.0033763]
[1768221950466,0.93139293,3118.8,3118.0,0.0033763]
[1768221950670,0.93139293,3118.7,3118.0,0.0033763]
[1768221950870,0.57218851,3118.9,3118.0,0.0033763]
[1768221951071,0.93139293,3118.8,3118.0,0.0033763]
[1768221951275,0.93139293,3118.7,3118.0,0.0033763]
[1768221951575,0.57218851,3118.9,3118.0,0.0033763]
[1768221951775,0.93141533,3118.8,3118.0,0.0033763]
[1768221951976,0.93141533,3118.7,3118.0,0.0033763]
[1768221952276,0.57218851,3118.9,3118.0,0.0033763]
[1768221952476,0.93143861,3118.8,3118.0,0.0033763]
[1768221952676,0.93143861,3118.7,3118.0,0.0033763]
[1768221952874,0.57218851,3118.9,3118.0,0.0033763]
[1768221953073,0.93143861,3118.8,3118.0,0.0033763]
[1768221953281,0.93143861,3118.7,3118.0,0.0033763]
[1768221953578,0.57218851,3118.9,3118.0,0.0033763]
[1768221953781,0.93146424,3118.8,3118.0,0.0033763]
[1768221954082,0.93146424,3118.7,3118.0,0.0033763]
[1768221954282,0.57218851,3118.9,3118.0,0.0033763]
[1768221954581,0.93149544,3118.8,3118.0,0.0033763]
[1768221954782,0.93149544,3118.7,3118.0,0.0033763]
[1768221954978,0.57218851,3118.9,3118.0,0.0033763]
[1768221955169,0.93149544,3118.8,3118.0,0.0033763]
[1768221955375,0.93149544,3118.7,3118.0,0.0033763]
[1768221955669,0.57218851,3118.9,3118.0,0.0033763]
[1768221955871,0.93153378,3118.8,3118.0,0.0033763]
[1768221956071,0.93153378,3118.7,3118.0,0.0033763]
[1768221956275,0.57218851,3118.9,3118.0,0.0033763]
[1768221956477,0.9315808,3118.8,3118.0,0.0033763]
[1768221956677,0.9315808,3118.7,3118.0,0.0033763]
[1768221956877,0.57218851,3118.9,3118.0,0.0033763]
[1768221957079,0.93158034,3118.8,3118.0,0.0033763]
[1768221957286,0.57218851,3118.9,3118.0,0.0033763]
[1768221957577,0.93162538,3118.8,3118.0,0.0033763]
[1768221957779,0.57218851,3118.9,3118.0,0.0033763]
[1768221957978,0.93160843,3118.8,3118.0,0.0033763]
[1768221958285,0.57218851,3118.9,3118.0,0.0033763]
[1768221958584,0.93157257,3118.8,3118.0,0.0033763]
[1768221958885,0.57218851,3118.9,3118.0,0.0033763]
[1768221959079,0.93095533,3118.8,3118.0,0.0033763]
[1768221959280,0.57218851,3118.9,3118.0,0.0033763]
[1768221959488,0.93093411,3118.8,3118.0,0.0033763]
[1768221959784,0.57218851,3118.9,3118.0,0.0033763]
[1768221959984,0.93093411,3118.8,3118.0,0.0033763]
[1768221960177,0.57218851,3118.9,3118.0,0.0033763]
[1768221960378,0.93093791,3118.8,3118.0,0.0033763]
[1768221960578,0.57218851,3118.9,3118.0,0.0033763]
[1768221960877,0.93087222,3118.8,3118.0,0.0033763]
[1768221961084,0.57218851,3118.9,3118.0,0.0033763]
[1768221961285,0.56972172,3118.7,3118.0,0.0033763]
[1768221971085,0.56972172,3118.7,3117.4,0.16059]
[1768221971279,0.55128916,3118.5,3117.4,0.16059]
[1768221972082,1.23608839,3118.6,3117.4,0.16411635]
[1768221972083,0.55128916,3118.3,3117.4,0.16411635]
[1768221972279,0.55128916,3118.3,3116.6,1.23608839]
[1768221972280,0.55128916,3118.3,3116.9,0.16062]
[1768221972485,0.55128916,3118.1,3116.9,0.16062]
[1768221972687,0.55128916,3117.9,3116.9,0.16062]
[1768221972886,0.55128916,3117.7,3116.9,0.16062]
[1768221973387,0.55128916,3117.7,3116.9,0.16290774]
[1768221978992,0.55128916,3117.7,3116.9,0.00228774]
[1768221979291,0.55128916,3117.7,3116.7,1.554]
[1768221980282,0.55128916,3117.7,3116.7,1.5566214]
[1768221991403,0.55128916,3117.7,3116.7,2.7936759]
[1768221993000,0.55128916,3117.7,3116.7,1.5566214]
[1768221993503,0.55128916,3117.7,3116.7,0.0026214]
[1768222002112,0.93200531,3117.6,3116.7,0.0026214]
[1768222002319,0.55375281,3117.6,3116.7,0.0026214]
[1768222018427,1.48622819,3117.5,3116.7,0.0026214]
[1768222018624,0.55375281,3117.5,3116.7,0.0026214]
[1768222023035,0.55375281,3117.5,3116.7,1.2396759]
[1768222024028,0.55375281,3117.9,3116.7,1.4003059]
[1768222024225,0.93243353,3117.8,3117.1,1.2370545]
[1768222024430,1.2370545,3118.6,3117.3,1.2370545]
[1768222024622,0.54293894,3118.4,3117.3,1.2370545]
[1768222024818,1.28539828,3118.3,3117.3,1.2370545]
[1768222025024,0.9323803,3118.2,3117.5,1.2370545]
[1768222025326,0.54293894,3118.4,3117.5,1.2370545]
[1768222025525,0.93150578,3118.3,3117.5,1.2370545]
[1768222025722,0.93150578,3118.2,3117.7,1.2370545]
[1768222025929,0.54293894,3118.4,3117.5,1.2370545]
[1768222026331,0.54293894,3118.4,3117.4,1.55]
[1768222026540,0.54293894,3118.4,3117.3,1.2370545]
[1768222026727,0.54293894,3118.4,3117.4,1.551]
[1768222026925,0.54293894,3118.4,3117.1,1.3976645]
[1768222027126,0.54293894,3118.0,3117.2,1.551]
[1768222027330,0.54293894,3117.8,3116.7,0.0026214]
[1768222027527,0.54293894,3117.6,3116.8,1.551]
[1768222028327,0.54293894,3117.6,3116.7,0.0026214]
[1768222028530,0.54293894,3117.4,3116.7,0.0026214]
[1768222030230,0.54293894,3118.1,3117.0,1.2370545]
[1768222032237,0.54293894,3118.1,3116.8,1.2370545]
[1768222033645,1.76754879,3117.8,3116.7,0.0026214]
[1768222033842,0.53049429,3117.7,3116.7,0.0026214]
[1768222034631,0.53049429,3117.5,3116.7,0.0026214]
[1768222058359,0.93029286,3117.4,3116.7,0.0026214]
[1768222058558,0.53049429,3117.5,3116.7,0.0026214]
[1768222058761,0.93029271,3117.4,3116.7,0.0026214]
[1768222058967,0.53049429,3117.5,3116.7,0.0026214]
[1768222059158,0.93029271,3117.4,3116.7,0.0026214]
[1768222059361,0.53049429,3117.5,3116.7,0.0026214]
[1768222059562,0.93030429,3117.4,3116.7,0.0026214]
[1768222059763,0.53049429,3117.5,3116.7,0.0026214]
[1768222059962,0.93030414,3117.4,3116.7,0.0026214]
[1768222060162,0.53049429,3117.5,3116.7,0.0026214]
[1768222060568,0.93032209,3117.4,3116.7,0.0026214]
[1768222060769,0.53049429,3117.5,3116.7,0.0026214]
[1768222060967,0.93032178,3117.4,3116.7,0.0026214]
[1768222061266,0.53049429,3117.5,3116.7,0.0026214]
[1768222061458,0.93035115,3117.4,3116.7,0.0026214]
[1768222061658,0.53049429,3117.5,3116.7,0.0026214]
[1768222061859,0.9303514,3117.4,3116.7,0.0026214]
[1768222062155,0.53049429,3117.5,3116.7,0.0026214]
[1768222062358,0.93035124,3117.4,3116.7,0.0026214]
[1768222062563,0.53049429,3117.5,3116.7,0.0026214]
[1768222062761,0.9303841,3117.4,3116.7,0.0026214]
[1768222062954,0.53049429,3117.5,3116.7,0.0026214]
[1768222063162,0.9303841,3117.4,3116.7,0.0026214]
[1768222063361,0.53049429,3117.5,3116.7,0.0026214]
[1768222063661,0.16055,3118.2,3116.7,0.0026214]
[1768222063662,0.93042588,3117.4,3116.7,0.0026214]
[1768222063865,0.56412865,3118.0,3116.7,0.0026214]
[1768222064065,0.56412865,3117.8,3116.7,0.0026214]
[1768222064262,0.56412865,3117.6,3116.7,0.0026214]
[1768222064462,0.93041807,3117.5,3116.7,0.0026214]
[1768222070785,1.49454672,3117.5,3116.7,0.0026214]
[1768222070984,0.93041807,3117.4,3116.7,0.0026214]
[1768222089005,0.56412865,3117.5,3116.7,0.0026214]
[1768222089202,0.56725188,3117.4,3116.7,0.0026214]
[1768222097006,0.53688276,3118.1,3116.7,0.1632514]
[1768222097194,0.53688276,3117.9,3116.7,0.1632514]
[1768222097394,0.53688276,3117.7,3116.8,1.542]
[1768222097600,0.53688276,3117.5,3116.8,1.542]
[1768222097995,0.53688276,3117.5,3116.7,0.1632514]
[1768222098199,0.53688276,3117.5,3116.7,1.70163]
[1768222099202,0.53688276,3117.5,3116.7,1.70401584]
[1768222120525,1.23719785,3117.6,3116.7,1.70401584]
[1768222120725,0.93011945,3117.5,3116.7,1.70401584]
[1768222120925,1.23719785,3117.6,3116.7,1.70401584]
[1768222121127,0.93011945,3117.5,3116.7,1.70401584]
[1768222121325,1.23719785,3117.6,3116.7,1.70401584]
[1768222121626,0.93012493,3117.5,3116.7,1.70401584]
[1768222121828,1.80433219,3117.9,3116.7,1.70401584]
[1768222122025,0.93012399,3117.8,3116.7,1.70401584]
[1768222122227,0.93012399,3117.7,3116.7,1.70401584]
[1768222122418,0.93012399,3117.6,3116.7,1.70401584]
[1768222122619,0.93012399,3117.5,3116.7,1.70401584]
[1768222122920,1.80433219,3117.9,3116.7,1.70401584]
[1768222123224,0.93013061,3117.8,3116.7,1.70401584]
[1768222123425,0.93013061,3117.7,3116.7,1.70401584]
[1768222123630,0.93013061,3117.6,3116.7,1.70401584]
[1768222123926,0.93013061,3117.5,3116.7,1.70401584]
[1768222124127,1.80433219,3117.9,3116.7,1.70401584]
[1768222124427,0.93013692,3117.8,3116.7,1.70401584]
[1768222124623,0.93013692,3117.7,3116.7,1.70401584]
[1768222124926,0.93013692,3117.6,3116.7,1.70401584]
[1768222125127,0.93013692,3117.5,3116.7,1.70401584]
[1768222125428,1.80433219,3117.9,3116.7,1.70401584]
[1768222125721,0.93015304,3117.8,3116.7,1.70401584]
[1768222125926,0.93015304,3117.7,3116.7,1.70401584]
[1768222126132,0.93015304,3117.6,3116.7,1.70401584]
[1768222126328,0.93015304,3117.5,3116.7,1.70401584]
[1768222126530,1.80433219,3117.9,3116.7,1.70401584]
[1768222126730,0.93013231,3117.8,3116.7,1.70401584]
[1768222126930,0.93013231,3117.7,3116.7,1.70401584]
[1768222127130,0.93013231,3117.6,3116.7,1.70401584]
[1768222127329,0.93013231,3117.5,3116.7,1.70401584]